bitfinex/quotes_BTCUSD_20220304
["timestamp","ask_amount","ask_price","bid_price","bid_amount"]
[1646411164401,0.29375838,40620.0,40613.0,0.061611]
[1646411164402,0.34375838,40620.0,40613.0,0.061611]
[1646411164603,0.39375838,40620.0,40613.0,0.061611]
[1646411166448,0.68230607,40620.0,40613.0,0.061611]
[1646411166652,0.16161,40620.0,40613.0,0.061611]
[1646411166849,0.1,40620.0,40613.0,0.061611]
[1646411167049,0.1,40620.0,40613.0,0.23602878]
[1646411167249,0.1,40622.0,40613.0,0.061611]
[1646411167448,0.1493,40626.0,40613.0,0.061611]
[1646411167449,0.0493,40626.0,40613.0,0.061611]
[1646411167653,0.2,40634.0,40617.0,0.11949041]
[1646411167654,0.2249259,40629.0,40617.0,0.11949041]
[1646411167850,0.33745117,40630.0,40617.0,0.11449041]
[1646411168250,0.33745117,40630.0,40617.0,0.05790141]
[1646411168251,0.061589,40629.0,40617.0,0.05790141]
[1646411168851,0.22249824,40627.0,40618.0,0.369589]
[1646411169050,0.061589,40629.0,40616.0,0.123177]
[1646411169250,0.061589,40629.0,40621.0,0.061589]
[1646411170401,0.25785008,40623.0,40621.0,0.061589]
[1646411170598,0.060929,40629.0,40621.0,0.061589]
[1646411170998,0.29346173,40625.0,40621.0,0.061589]
[1646411171199,0.24442142,40624.0,40620.0,0.123177]
[1646411171398,0.24442142,40624.0,40615.0,0.06161]
[1646411171600,0.0493,40623.0,40615.0,0.06161]
[1646411172500,0.061613,40621.0,40617.0,0.369589]
[1646411172705,0.14179945,40628.0,40620.0,0.369589]
[1646411172901,0.07637,40630.0,40619.0,0.061589]
[1646411173300,0.07637,40630.0,40620.0,0.3]
[1646411173301,0.1302013,40630.0,40620.0,0.3]
[1646411173502,0.06159,40628.0,40620.0,0.3]
[1646411173702,0.31575824,40624.0,40620.0,0.123178]
[1646411174176,0.31575824,40624.0,40621.0,0.061589]
[1646411174574,0.31575824,40624.0,40621.0,0.056589]
[1646411175377,0.31075824,40624.0,40621.0,0.056589]
[1646411175575,0.061596,40625.0,40621.0,0.056589]
[1646411175775,0.173189,40629.0,40621.0,0.056589]
[1646411175776,0.05,40628.0,40621.0,0.056589]
[1646411175976,0.05,40628.0,40621.0,0.356589]
[1646411176575,0.11159,40628.0,40621.0,0.356589]
[1646411177177,0.16159,40628.0,40621.0,0.356589]
[1646411178405,0.07637,40630.0,40622.0,0.394129]
[1646411178605,0.07637,40630.0,40622.0,0.455705]
[1646411178805,0.07637,40630.0,40626.0,0.369589]
[1646411179004,0.05,40641.0,40628.0,0.02454]
[1646411179204,0.56552659,40644.0,40628.0,0.209263]
[1646411179403,0.56552659,40644.0,40628.0,0.27677074]
[1646411179404,0.2401886,40642.0,40628.0,0.27677074]
[1646411179704,0.061575,40639.0,40629.0,0.369589]
[1646411179905,0.5333002,40647.0,40629.0,0.369589]
[1646411180106,0.3,40648.0,40629.0,0.369589]
[1646411180304,0.3,40648.0,40630.0,0.02454]
[1646411180507,0.17080901,40646.0,40634.0,0.02454]
[1646411180803,0.3028232,40644.0,40637.0,0.369589]
[1646411181003,0.3028232,40644.0,40636.0,0.061563]
[1646411181203,0.124229,40649.0,40637.0,0.369589]
[1646411181450,0.124229,40649.0,40636.0,0.061563]
[1646411181451,0.06156,40648.0,40636.0,0.061563]
[1646411182351,0.32027057,40648.0,40636.0,0.12312076]
[1646411182551,0.56657928,40648.0,40639.0,0.184676]
[1646411182753,0.83070016,40648.0,40639.0,0.184676]
[1646411182950,0.42027057,40648.0,40639.0,0.184676]
[1646411184053,0.63743546,40648.0,40639.0,0.184676]
[1646411184253,0.42027057,40648.0,40639.0,0.184676]
[1646411184454,0.11156,40648.0,40639.0,0.184676]
[1646411184655,0.11156,40648.0,40640.0,0.369589]
[1646411184656,0.05,40648.0,40640.0,0.369589]
[1646411184955,0.0011,40649.0,40641.0,0.06155]
[1646411185204,0.05,40649.0,40641.0,0.06155]
[1646411185598,0.0011,40651.0,40643.0,0.42698651]
[1646411185809,0.0011,40651.0,40644.0,0.694129]
[1646411186000,0.0011,40651.0,40648.0,0.02454]
[1646411186001,0.0001,40651.0,40648.0,0.02454]
[1646411186210,0.0011,40656.0,40653.0,0.394129]
[1646411186403,0.001,40666.0,40656.0,0.394129]
[1646411186701,0.0011,40665.0,40658.0,0.369589]
[1646411187298,0.16044408,40663.0,40654.0,0.369589]
[1646411187506,0.16044408,40663.0,40657.0,0.061521]
[1646411187699,0.16044408,40663.0,40657.0,0.361521]
[1646411187899,0.25678625,40658.0,40657.0,0.061521]
[1646411188500,0.25454625,40658.0,40657.0,0.061521]
[1646411189158,0.44969138,40658.0,40653.0,0.001]
[1646411189359,0.0396,40654.0,40645.0,0.1]
[1646411189559,1.31116084,40658.0,40643.0,0.3]
[1646411189560,0.0453,40653.0,40643.0,0.3]
[1646411189759,0.0453,40657.0,40644.0,0.123137]
[1646411189961,0.0453,40657.0,40645.0,0.3]
[1646411190160,0.061553,40653.0,40645.0,0.3]
[1646411190561,0.55926832,40646.0,40638.0,0.2262]
[1646411190759,0.55926832,40646.0,40644.0,0.061559]
[1646411190760,0.32182897,40646.0,40644.0,0.061559]
[1646411193004,0.0453,40655.0,40644.0,0.061559]
[1646411193205,0.24186473,40654.0,40647.0,0.123107]
[1646411193406,0.05,40654.0,40647.0,0.123107]
[1646411193806,0.15,40656.0,40647.0,0.123107]
[1646411194005,0.28216206,40652.0,40647.0,0.123107]
[1646411194204,0.33216206,40652.0,40647.0,0.123107]
[1646411195206,0.05,40652.0,40647.0,0.123107]
[1646411195407,0.123096,40661.0,40647.0,0.123107]
[1646411195608,0.173096,40661.0,40648.0,0.3]
[1646411195810,0.223096,40661.0,40648.0,0.3]
[1646411196008,0.18384879,40652.0,40651.0,0.061549]
[1646411196214,0.31874069,40655.0,40651.0,0.061549]
[1646411196458,0.36874069,40655.0,40651.0,0.061549]
[1646411196655,0.28336286,40653.0,40651.0,0.061549]
[1646411196858,0.05,40653.0,40651.0,0.061549]
[1646411197254,0.31874069,40655.0,40651.0,0.061549]
[1646411197455,0.061544,40659.0,40651.0,0.061549]
[1646411198057,0.12309,40662.0,40651.0,0.061549]
[1646411198058,0.21666681,40661.0,40651.0,0.061549]
[1646411198255,0.0511,40665.0,40651.0,0.061549]
[1646411198457,0.05,40661.0,40653.0,0.06381673]
[1646411198657,0.0511,40665.0,40654.0,0.431123]
[1646411198858,0.26633839,40665.0,40655.0,0.3]
[1646411199055,0.0011,40665.0,40655.0,0.3]
[1646411199253,0.18815103,40662.0,40655.0,0.3]
[1646411199454,0.0011,40665.0,40655.0,0.3]
[1646411200099,0.061538,40662.0,40655.0,0.3]
[1646411200602,0.28208128,40663.0,40655.0,0.3]
[1646411201406,0.34361928,40663.0,40655.0,0.3]
[1646411202203,0.50873491,40663.0,40654.0,0.061534]
[1646411202400,0.34361928,40663.0,40654.0,0.061534]
[1646411202601,0.28208128,40663.0,40654.0,0.061534]
[1646411202801,0.28208128,40663.0,40656.0,0.369589]
[1646411203002,0.28208128,40663.0,40654.0,0.061534]
[1646411203204,0.28208128,40663.0,40655.0,0.369589]
[1646411203602,0.28208128,40663.0,40657.0,0.13239398]
[1646411204073,0.0011,40665.0,40657.0,0.13239398]
[1646411204670,0.0011,40665.0,40658.0,0.369589]
[1646411204872,0.0011,40665.0,40659.0,0.369589]
[1646411205473,0.0011,40670.0,40662.0,0.06151726]
[1646411205674,0.0011,40670.0,40664.0,0.061517]
[1646411206873,0.0011,40670.0,40666.0,0.06005796]
[1646411207274,0.001,40672.0,40666.0,0.06005796]
[1646411207473,0.001,40672.0,40664.0,0.061517]
[1646411208508,0.001,40672.0,40669.0,0.0705181]
[1646411208709,0.001,40672.0,40670.0,0.369589]
[1646411209108,0.001,40672.0,40669.0,0.061514]
[1646411210508,0.24833708,40671.0,40669.0,0.061514]
[1646411210709,0.29833708,40671.0,40669.0,0.061514]
[1646411211967,0.051,40671.0,40669.0,0.076637]
[1646411212162,0.001,40671.0,40669.0,0.076637]
[1646411213863,0.001,40671.0,40670.0,0.369589]
[1646411214263,0.0011,40674.0,40670.0,0.369589]
[1646411214662,0.0011,40674.0,40672.0,0.554104]
[1646411214863,0.001,40677.0,40672.0,0.184515]
[1646411215713,0.001,40678.0,40674.0,1.15]
[1646411215914,0.001,40678.0,40675.0,0.369589]
[1646411216311,0.3011,40691.0,40675.0,0.369589]
[1646411216511,0.3011,40691.0,40673.0,0.061511]
[1646411216711,0.0011,40691.0,40673.0,0.161511]
[1646411216911,0.25694846,40687.0,40680.0,0.061499]
[1646411217314,0.123007,40688.0,40680.0,0.061499]
[1646411217917,0.173007,40688.0,40680.0,0.061499]
[1646411218114,0.31119866,40682.0,40680.0,0.061499]
[1646411218613,0.36119866,40682.0,40680.0,0.061499]
[1646411219058,0.36119866,40682.0,40669.0,0.015123]
[1646411219258,0.47270466,40682.0,40673.0,0.123035]
[1646411219456,0.01289977,40680.0,40673.0,0.123035]
[1646411219660,0.41119866,40682.0,40673.0,0.423035]
[1646411219855,0.05,40676.0,40673.0,0.123035]
[1646411220056,0.038,40676.0,40673.0,0.123035]
[1646411220255,0.18464616,40679.0,40673.0,0.123035]
[1646411220256,0.061515,40678.0,40673.0,0.123035]
[1646411221256,0.48421266,40682.0,40674.0,0.3]
[1646411221456,0.48421266,40682.0,40675.0,0.369589]
[1646411221457,0.061507,40682.0,40675.0,0.369589]
[1646411221658,0.0022,40689.0,40676.0,0.394129]
[1646411221859,0.0022,40689.0,40678.0,0.369589]
[1646411222063,0.0022,40689.0,40678.0,0.68705471]
[1646411222262,0.0022,40689.0,40680.0,0.369589]
[1646411222460,0.0022,40689.0,40681.0,0.3]
[1646411222707,0.0022,40689.0,40682.0,0.369589]
[1646411223104,0.0011,40690.0,40682.0,0.369589]
[1646411223307,0.0011,40690.0,40683.0,0.494129]
[1646411223505,0.0011,40690.0,40685.0,0.369589]
[1646411223905,0.0011,40690.0,40688.0,0.05514268]
[1646411224107,0.0011,40690.0,40689.0,0.369589]
[1646411224307,0.0011,40690.0,40688.0,0.05514268]
[1646411224505,0.0011,40690.0,40684.0,0.54015942]
[1646411224705,0.0011,40690.0,40685.0,0.02454]
[1646411224910,0.0011,40690.0,40686.0,0.369589]
[1646411225108,0.0011,40690.0,40687.0,0.3]
[1646411225306,0.0011,40690.0,40688.0,0.061483]
[1646411225506,0.0011,40690.0,40688.0,0.12770208]
[1646411226108,0.0011,40690.0,40688.0,0.061483]
[1646411228359,0.0011,40690.0,40688.0,0.062713]
[1646411229158,0.061491,40691.0,40688.0,0.062713]
[1646411229358,0.061484,40692.0,40688.0,0.062713]
[1646411229561,0.061484,40692.0,40688.0,0.060993]
[1646411231411,0.05,40691.0,40688.0,0.060993]
[1646411231713,0.061484,40692.0,40689.0,0.369589]
[1646411231912,0.05,40691.0,40689.0,0.369589]
[1646411232211,0.0021,40693.0,40690.0,0.669589]
[1646411232411,0.0021,40693.0,40690.0,0.3]
[1646411232611,0.0021,40693.0,40688.0,0.060993]
[1646411232816,0.0021,40693.0,40690.0,0.369589]
[1646411233012,0.0021,40693.0,40688.0,0.060993]
[1646411233414,0.0471,40694.0,40689.0,0.369589]
[1646411233612,0.0471,40694.0,40688.0,0.060993]
[1646411234757,0.0421,40694.0,40688.0,0.060993]
[1646411234960,0.28611119,40692.0,40688.0,0.060993]
[1646411235157,0.25392108,40691.0,40688.0,0.060993]
[1646411235460,0.0421,40694.0,40688.0,0.060993]
[1646411235656,0.0011,40695.0,40688.0,0.060993]
[1646411235857,0.061481,40693.0,40688.0,0.060993]
[1646411236257,0.21098156,40692.0,40688.0,0.060993]
[1646411236458,0.061481,40693.0,40688.0,0.060993]
[1646411236459,0.29782485,40689.0,40688.0,0.060993]
[1646411236661,0.34782485,40689.0,40688.0,0.060993]
[1646411237265,0.39782485,40689.0,40688.0,0.060993]
[1646411237463,0.62657482,40689.0,40688.0,0.060993]
[1646411237707,0.39782485,40689.0,40688.0,0.060993]
[1646411238908,0.1,40689.0,40688.0,0.060993]
[1646411239109,0.01457717,40690.0,40688.0,0.725582]
[1646411239312,0.061481,40693.0,40689.0,0.669589]
[1646411239511,0.061481,40693.0,40689.0,0.3]
[1646411240111,0.061481,40693.0,40690.0,0.369589]
[1646411241113,0.061481,40693.0,40688.0,0.055993]
[1646411241369,0.061481,40693.0,40685.0,0.1]
[1646411241567,0.061503,40688.0,40676.0,0.5262]
[1646411241775,0.061503,40685.0,40676.0,0.5262]
[1646411241971,0.061503,40685.0,40681.0,0.122993]
[1646411242472,0.061503,40685.0,40682.0,0.369589]
[1646411243068,0.061503,40685.0,40683.0,0.05296335]
[1646411243270,0.05,40689.0,40684.0,0.431072]
[1646411243469,0.111484,40690.0,40685.0,0.369589]
[1646411243768,0.061484,40690.0,40686.0,0.369589]
[1646411243969,0.05,40691.0,40687.0,0.3]
[1646411244170,0.0011,40695.0,40688.0,0.369589]
[1646411244368,0.061478,40694.0,40688.0,0.369589]
[1646411244568,0.061478,40694.0,40690.0,0.369589]
[1646411244768,0.0011,40695.0,40692.0,0.369589]
[1646411245612,0.0011,40695.0,40693.0,0.061473]
[1646411245915,0.0011,40695.0,40694.0,0.669589]
[1646411247213,0.0011,40695.0,40694.0,0.3]
[1646411247613,0.0011,40695.0,40694.0,0.669589]
[1646411247815,0.0011,40695.0,40694.0,0.769589]
[1646411248013,0.0011,40695.0,40694.0,0.860909]
[1646411249662,0.0011,40695.0,40694.0,0.885449]
[1646411249862,0.05,40704.0,40694.0,0.885449]
[1646411250063,0.05,40704.0,40695.0,0.184392]
[1646411250265,0.05,40704.0,40697.0,0.061467]
[1646411250563,0.05,40704.0,40698.0,0.73502124]
[1646411250762,0.001,40705.0,40699.0,0.669589]
[1646411250967,0.001,40705.0,40698.0,0.06543224]
[1646411251165,0.001,40705.0,40697.0,0.061467]
[1646411251765,0.001,40705.0,40698.0,0.369589]
[1646411251969,0.001,40705.0,40697.0,0.061467]
[1646411252167,0.001,40705.0,40699.0,0.369589]
[1646411252467,0.123943,40705.0,40699.0,0.369589]
[1646411252713,0.41187576,40705.0,40697.0,0.061467]
[1646411252908,0.41187576,40705.0,40698.0,0.369589]
[1646411253109,0.061471,40703.0,40698.0,0.369589]
[1646411253315,0.28982078,40698.0,40697.0,0.061467]
[1646411254316,0.28482078,40698.0,40697.0,0.061467]
[1646411254512,0.44705071,40698.0,40693.0,0.06149]
[1646411254912,0.56136547,40698.0,40693.0,0.06149]
[1646411255512,0.01348772,40695.0,40693.0,0.06149]
[1646411255710,0.0492,40694.0,40693.0,0.06149]
[1646411255910,0.0633186,40694.0,40693.0,0.06149]
[1646411256353,0.0492,40694.0,40693.0,0.06149]
[1646411257456,0.061495,40693.0,40689.0,0.061493]
[1646411257656,0.28546022,40691.0,40689.0,0.061493]
[1646411257856,0.38546022,40691.0,40689.0,0.061493]
[1646411258058,0.1,40691.0,40689.0,0.061493]
[1646411258258,0.161493,40692.0,40689.0,0.061493]
[1646411258663,0.28875288,40691.0,40689.0,0.061493]
[1646411258958,0.28875288,40691.0,40690.0,1.0]
[1646411259957,0.1,40692.0,40690.0,1.0]
[1646411260209,0.110695,40693.0,40690.0,1.0]
[1646411260210,0.05,40691.0,40690.0,1.0]
[1646411260615,0.25419886,40691.0,40690.0,1.0]
[1646411260810,0.35419886,40691.0,40690.0,1.0]
[1646411261511,0.1,40691.0,40690.0,1.0]
[1646411261712,0.36089342,40691.0,40690.0,1.0]
[1646411261912,0.31089342,40691.0,40690.0,1.0]
[1646411262112,0.41089342,40691.0,40690.0,1.0]
[1646411262513,0.63407516,40691.0,40690.0,1.0]
[1646411263218,0.58407516,40691.0,40690.0,1.0]
[1646411263516,0.061481,40696.0,40690.0,1.0]
[1646411264159,0.061481,40696.0,40691.0,0.122958]
[1646411266162,0.0021,40700.0,40692.0,0.369589]
[1646411266360,0.0021,40700.0,40691.0,0.122958]
[1646411266361,0.0021,40700.0,40694.0,0.369589]
[1646411269813,0.28697007,40695.0,40693.0,0.061467]
[1646411270016,0.33697007,40695.0,40693.0,0.061467]
[1646411270616,0.33697007,40695.0,40691.0,0.122958]
[1646411271013,0.39845807,40695.0,40691.0,0.122958]
[1646411271458,0.17297,40695.0,40691.0,0.122958]
[1646411271659,0.05,40695.0,40692.0,0.369589]
[1646411271862,0.0021,40700.0,40693.0,0.369589]
[1646411273261,0.0021,40700.0,40694.0,0.061467]
[1646411273459,0.0021,40700.0,40695.0,0.369589]
[1646411274262,0.0021,40700.0,40697.0,0.369589]
[1646411274664,0.0021,40700.0,40699.0,0.369589]
[1646411278023,0.0021,40700.0,40699.0,0.3695241]
[1646411278427,0.0021,40700.0,40697.0,0.061461]
[1646411279277,0.26804984,40698.0,40697.0,0.061461]
[1646411279877,0.05,40699.0,40697.0,0.061461]
[1646411280081,0.0015,40700.0,40698.0,0.369132]
[1646411280378,0.0015,40700.0,40697.0,0.061461]
[1646411280981,0.28705878,40699.0,40697.0,0.061461]
[1646411281183,0.33705878,40699.0,40697.0,0.061461]
[1646411281780,0.31692323,40699.0,40697.0,0.061461]
[1646411282186,0.31692323,40699.0,40692.0,0.2478]
[1646411282187,0.3,40698.0,40693.0,0.061487]
[1646411282380,0.0492,40698.0,40693.0,0.061487]
[1646411282812,0.45194658,40694.0,40693.0,0.061487]
[1646411283011,0.31792607,40694.0,40693.0,0.061487]
[1646411283210,0.36792607,40694.0,40693.0,0.061487]
[1646411283410,0.1,40694.0,40693.0,0.061487]
[1646411283711,0.05,40694.0,40693.0,0.061487]
[1646411283910,0.1492,40698.0,40693.0,0.061487]
[1646411284510,0.2506001,40697.0,40693.0,0.061487]
[1646411285310,0.16518077,40696.0,40693.0,0.061487]
[1646411285510,0.21518077,40696.0,40693.0,0.061487]
[1646411286378,0.05,40696.0,40693.0,0.061487]
[1646411286580,0.05,40697.0,40693.0,0.061487]
[1646411286779,0.38705878,40699.0,40694.0,0.369132]
[1646411286977,0.28705878,40699.0,40694.0,0.369132]
[1646411287381,0.28705878,40699.0,40693.0,0.061487]
[1646411288177,0.33705878,40699.0,40693.0,0.061487]
[1646411288577,0.27581655,40697.0,40693.0,0.061487]
[1646411288779,0.05,40696.0,40693.0,0.061487]
[1646411294763,0.15,40694.0,40681.0,0.245889]
[1646411294967,0.3,40695.0,40680.0,0.1]
[1646411294968,0.15,40687.0,40680.0,0.1]
[1646411295170,0.3492,40686.0,40672.0,0.2252]
[1646411295364,0.3127332,40685.0,40671.0,0.01]
[1646411295565,0.0492,40684.0,40671.0,0.01]
[1646411295763,0.4094127,40684.0,40671.0,0.01]
[1646411295964,0.123034,40682.0,40671.0,0.01]
[1646411296165,0.1107193,40681.0,40671.0,0.01]
[1646411296766,0.26112616,40678.0,40671.0,0.01]
[1646411296964,0.110712,40679.0,40672.0,0.123015]
[1646411297165,0.05,40678.0,40673.0,0.669132]
[1646411297364,0.0492,40683.0,40673.0,0.669132]
[1646411297614,0.002,40680.0,40673.0,0.669132]
[1646411298215,0.002,40680.0,40674.0,0.061501]
[1646411298418,0.002,40680.0,40675.0,0.369132]
[1646411298615,0.002,40680.0,40674.0,0.061501]
[1646411298814,0.002,40680.0,40675.0,0.369132]
[1646411299013,0.33015349,40682.0,40674.0,0.061501]
[1646411299014,0.12302,40681.0,40674.0,0.061501]
[1646411299416,0.23649711,40679.0,40674.0,0.061501]
[1646411299615,0.23649711,40679.0,40675.0,0.369132]
[1646411299816,0.05,40679.0,40674.0,0.061501]
[1646411300016,0.0512,40683.0,40675.0,0.369132]
[1646411300325,0.002,40683.0,40677.0,0.369132]
[1646411300516,0.002,40683.0,40678.0,0.061492]
[1646411300716,0.002,40683.0,40679.0,0.669132]
[1646411300918,0.05,40688.0,40682.0,0.369132]
[1646411301119,0.06148732,40694.0,40684.0,0.369132]
[1646411301374,0.0515,40700.0,40684.0,0.369132]
[1646411301768,0.002,40692.0,40684.0,0.369132]
[1646411301970,0.049,40700.0,40687.0,1.55]
[1646411302171,0.10272485,40706.0,40696.0,1.4]
[1646411302370,0.10272485,40706.0,40697.0,0.669132]
[1646411302371,0.0011,40706.0,40697.0,0.669132]
[1646411302568,0.0011,40706.0,40697.0,0.65591365]
[1646411302770,0.0011,40706.0,40699.0,0.369132]
[1646411302972,0.0011,40706.0,40701.0,0.369111]
[1646411303172,0.0011,40706.0,40701.0,0.43057]
[1646411304371,0.33200311,40708.0,40701.0,0.43057]
[1646411304372,0.00556909,40708.0,40701.0,0.43057]
[1646411304572,0.00556909,40708.0,40703.0,0.393651]
[1646411304573,0.00116909,40708.0,40703.0,0.393651]
[1646411304770,0.00116909,40708.0,40705.0,0.42469379]
[1646411304969,6.909e-05,40708.0,40705.0,0.48614079]
[1646411305616,0.00020909,40712.0,40706.0,1.42454]
[1646411305814,0.00020909,40712.0,40710.0,0.02454]
[1646411306013,0.00020909,40712.0,40711.0,0.369111]
[1646411306215,0.00020909,40712.0,40711.0,0.769111]
[1646411306413,0.00020909,40712.0,40711.0,0.669111]
[1646411306814,0.00020909,40712.0,40711.0,0.369111]
[1646411307913,0.00020909,40712.0,40711.0,0.669111]
[1646411308117,0.00020909,40712.0,40711.0,0.369111]
[1646411308414,0.00020909,40712.0,40711.0,0.669111]
[1646411308869,0.00020909,40712.0,40711.0,0.769111]
[1646411309870,0.0021,40719.0,40715.0,1.4]
[1646411310073,0.0021,40719.0,40716.0,0.669111]
[1646411310272,0.0021,40719.0,40716.0,0.769111]
[1646411310871,0.0021,40719.0,40717.0,0.32623171]
[1646411311071,0.0021,40719.0,40718.0,0.669111]
[1646411311273,0.0021,40719.0,40718.0,0.769111]
[1646411312715,0.001,40721.0,40719.0,0.9]
[1646411312923,0.0099,40729.0,40723.0,1.4]
[1646411313119,0.0021,40734.0,40727.0,0.15]
[1646411313120,0.001,40733.0,40727.0,0.15]
[1646411313325,0.001,40733.0,40728.0,0.669111]
[1646411313716,0.001,40733.0,40730.0,0.393651]
[1646411313915,0.001,40733.0,40730.0,0.369111]
[1646411314118,0.001,40733.0,40730.0,0.491929]
[1646411314517,0.001,40733.0,40732.0,0.369111]
[1646411314717,0.001,40733.0,40730.0,0.122818]
[1646411314918,0.001,40733.0,40722.0,0.0492]
[1646411315119,0.19039987,40732.0,40722.0,0.0492]
[1646411315318,0.19039987,40732.0,40720.0,0.1]
[1646411315319,0.29039987,40732.0,40720.0,0.1]
[1646411315518,0.29039987,40732.0,40719.0,0.30429393]
[1646411315717,0.29039987,40732.0,40719.0,0.30529393]
[1646411315921,0.27309716,40730.0,40720.0,0.369111]
[1646411316119,0.062426,40733.0,40720.0,0.369111]
[1646411316368,0.001,40733.0,40724.0,0.06456044]
[1646411316571,0.001,40733.0,40725.0,0.369111]
[1646411316767,0.001,40733.0,40727.0,0.369111]
[1646411316966,0.001,40733.0,40728.0,0.369111]
[1646411317166,0.001,40733.0,40729.0,0.369111]
[1646411317367,0.001,40733.0,40726.0,0.061426]
[1646411317667,0.001,40733.0,40727.0,0.369111]
[1646411318068,0.001,40733.0,40729.0,0.369111]
[1646411318270,0.001,40733.0,40729.0,0.430529]
[1646411318871,0.001,40733.0,40731.0,0.369111]
[1646411320322,0.0032,40736.0,40735.0,0.42388578]
[1646411320519,0.0032,40736.0,40735.0,0.369111]
[1646411320520,0.001,40736.0,40735.0,0.369111]
[1646411320717,0.001,40736.0,40735.0,0.469111]
[1646411321519,0.001,40736.0,40732.0,0.061418]
[1646411321921,0.001,40737.0,40732.0,0.061418]
[1646411322121,0.0003,40738.0,40732.0,0.061418]
[1646411322920,0.013573,40737.0,40732.0,0.061418]
[1646411323120,0.013573,40737.0,40731.0,0.001]
[1646411323520,0.24882181,40734.0,40733.0,0.0125]
[1646411323722,0.68646806,40734.0,40733.0,0.0125]
[1646411323969,0.80933606,40734.0,40733.0,0.0125]
[1646411324368,0.80433606,40734.0,40733.0,0.0125]
[1646411324767,0.96585599,40734.0,40733.0,0.0125]
[1646411325171,0.96585599,40734.0,40733.0,0.0001]
[1646411325467,0.87705599,40734.0,40733.0,0.0001]
[1646411325665,0.87643116,40734.0,40733.0,0.0001]
[1646411325871,0.98383793,40734.0,40733.0,0.0001]
[1646411326066,0.54038235,40734.0,40733.0,0.0001]
[1646411326868,0.69038235,40734.0,40733.0,0.0001]
[1646411327067,0.67680935,40734.0,40733.0,0.0001]
[1646411327468,0.69038235,40734.0,40733.0,0.0001]
[1646411327714,0.79038235,40734.0,40733.0,0.0001]
[1646411327914,0.85297837,40734.0,40733.0,0.0001]
[1646411328116,0.87755353,40734.0,40733.0,0.0001]
[1646411328717,1.62895353,40734.0,40733.0,0.0001]
[1646411329920,0.061447,40730.0,40722.0,0.122883]
[1646411330118,0.061448,40731.0,40722.0,0.122883]
[1646411330119,0.013573,40724.0,40722.0,0.122883]
[1646411330318,0.102373,40723.0,40722.0,0.122883]
[1646411330520,0.152373,40723.0,40722.0,0.122883]
[1646411331571,0.152373,40723.0,40722.0,0.117883]
[1646411332774,0.152373,40723.0,40705.0,0.24577]
[1646411332775,0.21503871,40710.0,40705.0,0.24577]
[1646411332977,0.21503871,40710.0,40698.0,0.1]
[1646411332978,0.013573,40708.0,40698.0,0.4]
[1646411333173,0.16126803,40711.0,40698.0,0.4]
[1646411333174,0.0492,40707.0,40698.0,0.4]
[1646411333371,0.0492,40706.0,40698.0,0.1]
[1646411333571,0.0492,40705.0,40702.0,0.06236602]
[1646411333771,0.05,40703.0,40697.0,0.3]
[1646411334073,0.05,40703.0,40699.0,0.12294]
[1646411334074,0.0492,40702.0,40699.0,0.12294]
[1646411334270,0.0992,40702.0,40699.0,0.12294]
[1646411334671,0.1492,40702.0,40700.0,0.06708077]
[1646411334871,0.34589033,40702.0,40700.0,0.06708077]
[1646411335117,0.1492,40702.0,40700.0,0.06708077]
[1646411335918,0.1492,40702.0,40701.0,0.369111]
[1646411336120,0.1492,40702.0,40700.0,0.06708077]
[1646411336523,0.1492,40702.0,40701.0,0.369111]
[1646411336919,0.1492,40702.0,40700.0,0.06708077]
[1646411337120,0.1492,40702.0,40701.0,0.369111]
[1646411339069,0.1492,40702.0,40701.0,0.669111]
[1646411339272,0.0492,40702.0,40701.0,0.669111]
[1646411340869,0.22291675,40706.0,40702.0,0.0984]
[1646411341069,0.06145838,40703.0,40702.0,0.0984]
[1646411341269,0.06145838,40703.0,40702.0,0.467494]
[1646411341874,0.23804283,40703.0,40702.0,0.0984]
[1646411342073,0.83009083,40703.0,40702.0,0.0984]
[1646411342273,1.06552058,40703.0,40702.0,0.0984]
[1646411343124,1.12699658,40703.0,40702.0,0.0984]
[1646411345125,1.27699658,40703.0,40702.0,0.0984]
[1646411345526,1.12699658,40703.0,40702.0,0.0984]
[1646411345828,0.061487,40699.0,40688.0,0.122964]
[1646411346029,0.13623,40700.0,40681.0,0.7741]
[1646411346030,0.013257,40695.0,40681.0,0.7741]
[1646411346228,0.419094,40693.0,40681.0,0.01]
[1646411346472,0.013257,40690.0,40681.0,0.01]
[1646411346671,0.369094,40685.0,40681.0,0.01]
[1646411346872,0.0492,40684.0,40681.0,0.01]
[1646411347075,0.013257,40683.0,40681.0,0.01]
[1646411347271,0.0492,40682.0,40681.0,0.01]
[1646411347470,0.418294,40682.0,40681.0,0.01]
[1646411348072,0.457894,40682.0,40681.0,0.01]
[1646411348276,0.06151677,40680.0,40672.0,3.13677645]
[1646411348474,0.12302519,40678.0,40672.0,3.13677645]
[1646411348672,0.12302519,40678.0,40676.0,0.05482724]
[1646411348872,0.05,40677.0,40674.0,0.06151]
[1646411349776,0.05,40677.0,40670.0,0.123017]
[1646411349777,0.27140587,40674.0,40670.0,0.123017]
[1646411349979,0.369094,40673.0,40671.0,0.0081198]
[1646411350219,0.20209059,40672.0,40671.0,0.0081198]
[1646411350419,0.60712759,40672.0,40671.0,0.0081198]
[1646411350625,0.0492,40672.0,40671.0,0.0081198]
[1646411350824,0.650613,40672.0,40671.0,0.0081198]
[1646411351021,0.350613,40672.0,40671.0,0.0081198]
[1646411351334,0.67440625,40672.0,40671.0,0.0081198]